[Event "*** Titled Tuesday 3|2 Blitz"]
[Site "Chess.com"]
[Date "2016.01.05"]
[Round "2"]
[White "AvitalBor"]
[Black "Quiet_Desperation"]
[Result "1-0"]
[WhiteElo "2334"]
[BlackElo "2132"]
[TimeControl "180+2"]
[EndTime "11:21:19 PST"]
[Termination "AvitalBor won by resignation"]

1. e4 {[%clk 0:02:59.2]} 1... e6 {[%clk 0:02:52.8]} 2. d4 {[%clk 0:02:58.6]}
2... d5 {[%clk 0:02:52.7]} 3. e5 {[%clk 0:03:00.5]} 3... c5 {[%clk 0:02:40.5]}
4. c3 {[%clk 0:03:00.9]} 4... Nc6 {[%clk 0:02:24.6]} 5. Nf3 {[%clk 0:03:00.9]}
5... Bd7 {[%clk 0:02:24.4]} 6. a3 {[%clk 0:02:50.1]} 6... f6 {[%clk 0:02:06]} 7.
Bd3 {[%clk 0:02:47.9]} 7... Qc7 {[%clk 0:02:03.5]} 8. O-O {[%clk 0:02:44.6]}
8... O-O-O {[%clk 0:02:02.6]} 9. Bf4 {[%clk 0:02:40.8]} 9... c4 {[%clk
0:02:02.1]} 10. Bc2 {[%clk 0:02:39.9]} 10... h6 {[%clk 0:02:02]} 11. Bg3 {[%clk
0:02:39.3]} 11... f5 {[%clk 0:01:58.6]} 12. Nbd2 {[%clk 0:02:33.3]} 12... g5
{[%clk 0:01:52.2]} 13. h4 {[%clk 0:02:28.7]} 13... Be8 {[%clk 0:01:45.1]} 14.
hxg5 {[%clk 0:02:07.2]} 14... hxg5 {[%clk 0:01:43.4]} 15. Nxg5 {[%clk
0:02:08.5]} 15... Qg7 {[%clk 0:01:23.6]} 16. f4 {[%clk 0:01:59.3]} 16... Qh6
{[%clk 0:01:21.3]} 17. Ndf3 {[%clk 0:02:00]} 17... Bh5 {[%clk 0:01:19.3]} 18.
Kf2 {[%clk 0:01:58.1]} 18... Be7 {[%clk 0:01:11.8]} 19. Qb1 {[%clk 0:01:35.4]}
19... Bxg5 {[%clk 0:00:34.8]} 20. Nxg5 {[%clk 0:01:35.2]} 20... Qg6 {[%clk
0:00:32.6]} 21. Nxe6 {[%clk 0:01:30]} 21... Nh6 {[%clk 0:00:30.1]} 22. Nxd8
{[%clk 0:01:14]} 22... Rg8 {[%clk 0:00:31.1]} 23. Kg1 {[%clk 0:00:43]} 23...
Qxg3 {[%clk 0:00:28.1]} 24. Rf2 {[%clk 0:00:43.8]} 24... Bf3 {[%clk 0:00:07.5]}
25. Bxf5+ {[%clk 0:00:35]} 25... Kxd8 {[%clk 0:00:06]} 26. Qf1 {[%clk
0:00:33.6]} 26... Bg4 {[%clk 0:00:02.2]} 27. Bh7 {[%clk 0:00:31]} 27... Bf5
{[%clk 0:00:02.3]} 28. Rf3 {[%clk 0:00:29.6]} 28... Qg7 {[%clk 0:00:02.8]} 29.
Bxg8 {[%clk 0:00:30.2]} 29... Qxg8 {[%clk 0:00:03.5]} 30. Qf2 {[%clk 0:00:30.2]}
30... Be4 {[%clk 0:00:04.9]} 31. Rg3 {[%clk 0:00:30.3]} 31... Ng4 {[%clk
0:00:05.9]} 32. Qe2 {[%clk 0:00:30.4]} 32... Bf5 {[%clk 0:00:06.2]} 33. e6
{[%clk 0:00:31]} 33... Ne7 {[%clk 0:00:07.7]} 34. Qe5 {[%clk 0:00:29.7]} 34...
Qg6 {[%clk 0:00:08.4]} 35. Qd6+ {[%clk 0:00:29.1]} 35... Ke8 {[%clk 0:00:09.4]}
36. Qb8+ {[%clk 0:00:29.8]} 1-0

[Event "*** Titled Tuesday 3|2 Blitz"]
[Site "Chess.com"]
[Date "2016.01.05"]
[Round "2"]
[White "GianmarcoVaR"]
[Black "MapleDanish"]
[Result "1-0"]
[WhiteElo "2302"]
[BlackElo "2075"]
[TimeControl "180+2"]
[EndTime "11:21:25 PST"]
[Termination "GianmarcoVaR won by resignation"]

1. d4 {[%clk 0:03:01.9]} 1... d5 {[%clk 0:03:00.3]} 2. Nf3 {[%clk 0:03:03.4]}
2... Nf6 {[%clk 0:03:01]} 3. c4 {[%clk 0:03:05]} 3... e6 {[%clk 0:03:02.3]} 4.
g3 {[%clk 0:03:04.8]} 4... Be7 {[%clk 0:03:03.7]} 5. Bg2 {[%clk 0:03:06.2]} 5...
O-O {[%clk 0:03:05.2]} 6. O-O {[%clk 0:03:06.6]} 6... dxc4 {[%clk 0:03:06.6]} 7.
Qc2 {[%clk 0:03:07.2]} 7... a6 {[%clk 0:03:07.3]} 8. Qxc4 {[%clk 0:03:03.6]}
8... b5 {[%clk 0:03:07.2]} 9. Qc2 {[%clk 0:03:04.5]} 9... Bb7 {[%clk 0:03:07.2]}
10. Bd2 {[%clk 0:03:06]} 10... Be4 {[%clk 0:03:04.8]} 11. Qc1 {[%clk 0:03:07.3]}
11... Bb7 {[%clk 0:03:04.1]} 12. Qc2 {[%clk 0:03:08.1]} 12... Be4 {[%clk
0:03:04.4]} 13. Qc1 {[%clk 0:03:09.7]} 13... Bb7 {[%clk 0:03:04.9]} 14. Rd1
{[%clk 0:03:06.4]} 14... Ra7 {[%clk 0:02:42.8]} 15. Bf4 {[%clk 0:03:03.5]} 15...
Bd6 {[%clk 0:02:13.4]} 16. Nc3 {[%clk 0:02:56.5]} 16... Bxf4 {[%clk 0:02:11.3]}
17. Qxf4 {[%clk 0:02:56.8]} 17... Nbd7 {[%clk 0:02:06.5]} 18. Ne5 {[%clk
0:02:53.5]} 18... Bxg2 {[%clk 0:02:05.1]} 19. Kxg2 {[%clk 0:02:54]} 19... Qa8+
{[%clk 0:02:04.8]} 20. f3 {[%clk 0:02:40.4]} 20... c5 {[%clk 0:01:55.5]} 21.
Nxd7 {[%clk 0:02:31.3]} 21... Nxd7 {[%clk 0:01:56]} 22. d5 {[%clk 0:02:25.1]}
22... b4 {[%clk 0:01:52.9]} 23. Na4 {[%clk 0:01:50.2]} 23... exd5 {[%clk
0:01:49.6]} 24. Qd6 {[%clk 0:01:51.6]} 24... Qe8 {[%clk 0:00:57.9]} 25. Kf2
{[%clk 0:01:42.5]} 25... d4 {[%clk 0:00:59.1]} 26. Nxc5 {[%clk 0:01:38.5]} 26...
Qe3+ {[%clk 0:00:58.7]} 27. Kf1 {[%clk 0:01:37.9]} 27... Re8 {[%clk 0:00:25.6]}
28. Ne4 {[%clk 0:01:08.2]} 28... Nf6 {[%clk 0:00:07.7]} 29. Qxd4 {[%clk
0:00:31.3]} 29... Qxd4 {[%clk 0:00:07.4]} 30. Rxd4 {[%clk 0:00:32.8]} 30... Nxe4
{[%clk 0:00:08.5]} 31. fxe4 {[%clk 0:00:34.4]} 31... Rae7 {[%clk 0:00:08.8]} 32.
Rc1 {[%clk 0:00:34]} 32... a5 {[%clk 0:00:09.5]} 33. Rc5 {[%clk 0:00:34.4]}
33... g6 {[%clk 0:00:06]} 34. Rxa5 {[%clk 0:00:34]} 34... Rxe4 {[%clk
0:00:07.6]} 35. Rxe4 {[%clk 0:00:34.6]} 35... Rxe4 {[%clk 0:00:09.5]} 36. Ra4
{[%clk 0:00:35.4]} 36... f5 {[%clk 0:00:05.2]} 37. a3 {[%clk 0:00:35]} 37...
bxa3 {[%clk 0:00:05.8]} 38. Rxe4 {[%clk 0:00:34.5]} 38... fxe4 {[%clk
0:00:06.9]} 39. bxa3 {[%clk 0:00:35.4]} 1-0

[Event "*** Titled Tuesday 3|2 Blitz"]
[Site "Chess.com"]
[Date "2016.01.05"]
[Round "2"]
[White "AdrianaNikolova"]
[Black "Danirod"]
[Result "0-1"]
[WhiteElo "2179"]
[BlackElo "2383"]
[TimeControl "180+2"]
[EndTime "11:21:31 PST"]
[Termination "Danirod won by resignation"]

1. e4 {[%clk 0:02:59.7]} 1... c5 {[%clk 0:03:00.9]} 2. Nf3 {[%clk 0:02:59.8]}
2... g6 {[%clk 0:03:02.5]} 3. d4 {[%clk 0:02:57.6]} 3... cxd4 {[%clk 0:03:03.7]}
4. Nxd4 {[%clk 0:02:59.5]} 4... Bg7 {[%clk 0:03:04.5]} 5. Nc3 {[%clk 0:03:00.9]}
5... Nc6 {[%clk 0:03:05.2]} 6. Be3 {[%clk 0:03:00]} 6... Nf6 {[%clk 0:03:06]} 7.
Bc4 {[%clk 0:02:59.2]} 7... Qa5 {[%clk 0:03:06.8]} 8. O-O {[%clk 0:02:57.1]}
8... O-O {[%clk 0:03:07.8]} 9. Be2 {[%clk 0:02:49.4]} 9... d6 {[%clk 0:03:04.1]}
10. f4 {[%clk 0:02:43.5]} 10... Bd7 {[%clk 0:02:47]} 11. Bf3 {[%clk 0:02:42.7]}
11... Rac8 {[%clk 0:02:41.7]} 12. Kh1 {[%clk 0:02:40.8]} 12... Nxd4 {[%clk
0:02:41.9]} 13. Bxd4 {[%clk 0:02:40.4]} 13... Bc6 {[%clk 0:02:43.2]} 14. Bg1
{[%clk 0:02:10.1]} 14... b5 {[%clk 0:02:38.6]} 15. a3 {[%clk 0:02:00.2]} 15...
Rfd8 {[%clk 0:02:39.1]} 16. Qe2 {[%clk 0:01:49.5]} 16... a6 {[%clk 0:02:37.7]}
17. Rad1 {[%clk 0:01:35.1]} 17... Qc7 {[%clk 0:02:32.2]} 18. Rd2 {[%clk
0:01:31.4]} 18... Nd7 {[%clk 0:02:27.1]} 19. Bd4 {[%clk 0:01:29.1]} 19... Qb7
{[%clk 0:02:23.6]} 20. Bxg7 {[%clk 0:01:28.9]} 20... Kxg7 {[%clk 0:02:25.5]} 21.
Nd5 {[%clk 0:01:25.8]} 21... Nc5 {[%clk 0:02:21.3]} 22. f5 {[%clk 0:01:19]}
22... Re8 {[%clk 0:02:04.3]} 23. Qe3 {[%clk 0:01:13.4]} 23... Nd7 {[%clk
0:01:57.6]} 24. Qg5 {[%clk 0:01:05.6]} 24... f6 {[%clk 0:01:57.9]} 25. Qg3
{[%clk 0:00:59.1]} 25... Ne5 {[%clk 0:01:58]} 26. h4 {[%clk 0:00:32]} 26... Bxd5
{[%clk 0:01:59]} 27. exd5 {[%clk 0:00:32.3]} 27... Rc4 {[%clk 0:01:53.6]} 28. b3
{[%clk 0:00:29.9]} 28... Rc3 {[%clk 0:01:54.1]} 29. Qf4 {[%clk 0:00:24.3]} 29...
Rec8 {[%clk 0:01:45.5]} 30. Rff2 {[%clk 0:00:25.4]} 30... Qb6 {[%clk 0:01:41.5]}
31. Be4 {[%clk 0:00:25.4]} 31... Qe3 {[%clk 0:01:40.7]} 32. Qxe3 {[%clk
0:00:23.7]} 32... Rxe3 {[%clk 0:01:41.5]} 33. Rd4 {[%clk 0:00:15.7]} 33... Re1+
{[%clk 0:01:38.6]} 34. Kh2 {[%clk 0:00:15.8]} 34... Ng4+ {[%clk 0:01:39.5]} 35.
Kg3 {[%clk 0:00:17.3]} 35... Nxf2 {[%clk 0:01:40.7]} 36. Kxf2 {[%clk 0:00:19.2]}
36... Rxe4 {[%clk 0:01:39.1]} 37. Rxe4 {[%clk 0:00:19.8]} 37... Rxc2+ {[%clk
0:01:40.4]} 38. Kg1 {[%clk 0:00:19.1]} 38... Kf7 {[%clk 0:01:41.5]} 39. fxg6+
{[%clk 0:00:20.4]} 39... hxg6 {[%clk 0:01:42.9]} 40. Re3 {[%clk 0:00:21.1]}
40... Rc5 {[%clk 0:01:43.1]} 41. h5 {[%clk 0:00:22.2]} 41... gxh5 {[%clk
0:01:42.4]} 42. Rh3 {[%clk 0:00:23.4]} 42... Rxd5 {[%clk 0:01:43.5]} 43. Rc3
{[%clk 0:00:25]} 43... Rc5 {[%clk 0:01:44.5]} 44. Rh3 {[%clk 0:00:24.9]} 44...
a5 {[%clk 0:01:45.6]} 45. b4 {[%clk 0:00:25.5]} 45... axb4 {[%clk 0:01:47.1]}
46. axb4 {[%clk 0:00:27.4]} 46... Re5 {[%clk 0:01:47.2]} 47. Ra3 {[%clk
0:00:27.2]} 47... Re4 {[%clk 0:01:48.1]} 48. Rh3 {[%clk 0:00:27.6]} 48... h4
{[%clk 0:01:46.7]} 49. Kh2 {[%clk 0:00:24.7]} 49... Rxb4 {[%clk 0:01:47.1]} 50.
Rc3 {[%clk 0:00:25.9]} 50... Rc4 {[%clk 0:01:48.3]} 51. Rb3 {[%clk 0:00:26.5]}
51... b4 {[%clk 0:01:49.7]} 52. Rb2 {[%clk 0:00:23.4]} 52... e5 {[%clk
0:01:50.7]} 53. Kh3 {[%clk 0:00:24]} 53... Ke6 {[%clk 0:01:51.9]} 54. Rb1 {[%clk
0:00:24.1]} 54... d5 {[%clk 0:01:53.3]} 55. Ra1 {[%clk 0:00:24.6]} 55... b3
{[%clk 0:01:54.2]} 56. Ra6+ {[%clk 0:00:26.5]} 56... Kf5 {[%clk 0:01:55.4]} 57.
Rb6 {[%clk 0:00:28.3]} 57... Rc3+ {[%clk 0:01:53.8]} 58. Kxh4 {[%clk 0:00:29.7]}
58... d4 {[%clk 0:01:54.9]} 59. g4+ {[%clk 0:00:30.6]} 59... Ke4 {[%clk
0:01:56.1]} 60. Rxf6 {[%clk 0:00:31.9]} 60... b2 {[%clk 0:01:57.3]} 61. Rb6
{[%clk 0:00:33]} 61... Rc2 {[%clk 0:01:58.5]} 62. g5 {[%clk 0:00:34.9]} 62... d3
{[%clk 0:02:00]} 63. g6 {[%clk 0:00:36.2]} 63... Rg2 {[%clk 0:02:00.9]} 64. g7
{[%clk 0:00:34.7]} 64... Rxg7 {[%clk 0:02:00.1]} 65. Rb4+ {[%clk 0:00:35.9]}
65... Ke3 {[%clk 0:02:01.2]} 66. Rxb2 {[%clk 0:00:37.8]} 66... d2 {[%clk
0:02:01.7]} 0-1

[Event "*** Titled Tuesday 3|2 Blitz"]
[Site "Chess.com"]
[Date "2016.01.05"]
[Round "2"]
[White "RitchieBlackmore"]
[Black "gumersindo"]
[Result "0-1"]
[WhiteElo "2426"]
[BlackElo "2287"]
[TimeControl "180+2"]
[EndTime "11:21:32 PST"]
[Termination "gumersindo won by resignation"]

1. d4 {[%clk 0:02:59.4]} 1... d5 {[%clk 0:03:00.7]} 2. Nc3 {[%clk 0:03:00]} 2...
Nf6 {[%clk 0:02:56.6]} 3. Bg5 {[%clk 0:03:00.5]} 3... e6 {[%clk 0:02:58.2]} 4.
e4 {[%clk 0:03:01.3]} 4... dxe4 {[%clk 0:02:59.7]} 5. Nxe4 {[%clk 0:03:02.2]}
5... Nbd7 {[%clk 0:02:58.3]} 6. Nf3 {[%clk 0:03:02.9]} 6... Be7 {[%clk
0:02:58.8]} 7. Nxf6+ {[%clk 0:03:03.5]} 7... Bxf6 {[%clk 0:02:59.4]} 8. Be3
{[%clk 0:03:02]} 8... b6 {[%clk 0:02:56.9]} 9. Bd3 {[%clk 0:03:02.7]} 9... Bb7
{[%clk 0:02:57.5]} 10. c3 {[%clk 0:03:03.1]} 10... Qe7 {[%clk 0:02:55.7]} 11.
Qc2 {[%clk 0:03:03.2]} 11... g6 {[%clk 0:02:55.9]} 12. Be4 {[%clk 0:03:04]}
12... Bxe4 {[%clk 0:02:51.3]} 13. Qxe4 {[%clk 0:03:05.9]} 13... O-O {[%clk
0:02:52.6]} 14. O-O-O {[%clk 0:02:49.7]} 14... c5 {[%clk 0:02:44.1]} 15. dxc5
{[%clk 0:02:47.4]} 15... Nxc5 {[%clk 0:02:44.1]} 16. Qc2 {[%clk 0:02:43.7]}
16... Rad8 {[%clk 0:02:44]} 17. Kb1 {[%clk 0:02:35.6]} 17... Qc7 {[%clk
0:02:34.2]} 18. h4 {[%clk 0:02:32.4]} 18... Rxd1+ {[%clk 0:02:34.8]} 19. Rxd1
{[%clk 0:02:31.6]} 19... Rd8 {[%clk 0:02:36.1]} 20. h5 {[%clk 0:02:26.3]} 20...
Rxd1+ {[%clk 0:02:33.8]} 21. Qxd1 {[%clk 0:02:24.8]} 21... Qc6 {[%clk
0:02:30.3]} 22. hxg6 {[%clk 0:02:24.2]} 22... hxg6 {[%clk 0:02:30.2]} 23. Bd4
{[%clk 0:02:13.9]} 23... Qe4+ {[%clk 0:02:28.5]} 24. Qc2 {[%clk 0:01:54.8]}
24... Bxd4 {[%clk 0:02:23.2]} 25. cxd4 {[%clk 0:01:56.7]} 25... Qxc2+ {[%clk
0:02:20.5]} 26. Kxc2 {[%clk 0:01:54.7]} 26... Ne4 {[%clk 0:02:22.1]} 27. Ne5
{[%clk 0:01:53.9]} 27... Nxf2 {[%clk 0:02:22.1]} 28. Nc6 {[%clk 0:01:55.4]}
28... Ng4 {[%clk 0:02:00.2]} 29. Kd3 {[%clk 0:01:53]} 29... a5 {[%clk
0:01:49.7]} 30. a4 {[%clk 0:01:48.3]} 30... Kf8 {[%clk 0:01:49.3]} 31. Na7
{[%clk 0:01:45.4]} 31... Nf6 {[%clk 0:01:47.5]} 32. Nc8 {[%clk 0:01:36.9]} 32...
Nd5 {[%clk 0:01:48]} 33. Kc4 {[%clk 0:01:34]} 33... f5 {[%clk 0:01:45.2]} 34.
Kd3 {[%clk 0:01:16.5]} 34... g5 {[%clk 0:01:45.4]} 35. Ke2 {[%clk 0:01:09]}
35... g4 {[%clk 0:01:45.1]} 36. Na7 {[%clk 0:01:08.2]} 36... Ke7 {[%clk
0:01:43.8]} 37. Nc6+ {[%clk 0:01:09.3]} 37... Kd6 {[%clk 0:01:42.3]} 38. Ne5
{[%clk 0:01:11]} 38... Nf4+ {[%clk 0:01:39.3]} 39. Kf1 {[%clk 0:01:09]} 39...
Kd5 {[%clk 0:01:33.4]} 40. Nd7 {[%clk 0:01:10.1]} 40... Nd3 {[%clk 0:01:29.2]}
41. Nxb6+ {[%clk 0:01:08.4]} 41... Kxd4 {[%clk 0:01:30.2]} 42. b3 {[%clk
0:01:10.1]} 42... Nc5 {[%clk 0:01:25.8]} 43. Na8 {[%clk 0:00:39.3]} 43... Nxb3
{[%clk 0:01:18]} 44. Nc7 {[%clk 0:00:40.7]} 44... e5 {[%clk 0:01:17.4]} 45. Ne6+
{[%clk 0:00:38.5]} 45... Ke3 {[%clk 0:01:17.4]} 46. Ng7 {[%clk 0:00:35.8]} 46...
f4 {[%clk 0:01:16.5]} 47. Nf5+ {[%clk 0:00:37.1]} 47... Kd3 {[%clk 0:01:15.9]}
48. Nd6 {[%clk 0:00:36.6]} 48... e4 {[%clk 0:01:13.7]} 49. Nb7 {[%clk
0:00:34.9]} 49... e3 {[%clk 0:01:11.1]} 50. Ke1 {[%clk 0:00:35.8]} 50... f3
{[%clk 0:01:11.1]} 51. gxf3 {[%clk 0:00:29.6]} 51... gxf3 {[%clk 0:01:11.8]} 52.
Nd6 {[%clk 0:00:31.3]} 52... f2+ {[%clk 0:01:12.4]} 53. Kf1 {[%clk 0:00:32.3]}
53... Nd2+ {[%clk 0:01:13.3]} 54. Kg2 {[%clk 0:00:33.7]} 54... f1=Q+ {[%clk
0:01:14.4]} 55. Kh2 {[%clk 0:00:35.6]} 0-1

[Event "*** Titled Tuesday 3|2 Blitz"]
[Site "Chess.com"]
[Date "2016.01.05"]
[Round "2"]
[White "Boryboy"]
[Black "BahadirOzen"]
[Result "1-0"]
[WhiteElo "2512"]
[BlackElo "2468"]
[TimeControl "180+2"]
[EndTime "11:21:41 PST"]
[Termination "Boryboy won by resignation"]

1. d4 {[%clk 0:02:59.5]} 1... d5 {[%clk 0:02:57.8]} 2. Nf3 {[%clk 0:02:56.9]}
2... Nf6 {[%clk 0:02:58.5]} 3. c4 {[%clk 0:02:57.6]} 3... e6 {[%clk 0:02:59]} 4.
g3 {[%clk 0:02:57]} 4... Be7 {[%clk 0:02:58.7]} 5. Bg2 {[%clk 0:02:58.3]} 5...
O-O {[%clk 0:02:59.8]} 6. O-O {[%clk 0:02:59.6]} 6... dxc4 {[%clk 0:03:00.9]} 7.
Ne5 {[%clk 0:03:00.4]} 7... Nc6 {[%clk 0:03:01.7]} 8. Bxc6 {[%clk 0:03:01.5]}
8... bxc6 {[%clk 0:03:03]} 9. Nxc6 {[%clk 0:03:00.2]} 9... Qe8 {[%clk
0:03:01.2]} 10. Nxe7+ {[%clk 0:03:01.4]} 10... Qxe7 {[%clk 0:03:02.9]} 11. Qa4
{[%clk 0:03:02.8]} 11... e5 {[%clk 0:03:00.5]} 12. dxe5 {[%clk 0:03:04.1]} 12...
Qxe5 {[%clk 0:03:01.1]} 13. Qxc4 {[%clk 0:03:05.5]} 13... Be6 {[%clk 0:02:59.9]}
14. Qd3 {[%clk 0:03:06.7]} 14... Rad8 {[%clk 0:02:58.5]} 15. Qe3 {[%clk
0:03:07.6]} 15... Qh5 {[%clk 0:02:58.3]} 16. f3 {[%clk 0:03:05.3]} 16... Bh3
{[%clk 0:02:12.1]} 17. Re1 {[%clk 0:02:59.9]} 17... Rfe8 {[%clk 0:02:12.5]} 18.
Qf2 {[%clk 0:03:00.2]} 18... c5 {[%clk 0:01:29.3]} 19. Nc3 {[%clk 0:02:58.7]}
19... c4 {[%clk 0:01:29.8]} 20. Bf4 {[%clk 0:02:52.9]} 20... Be6 {[%clk
0:01:06.9]} 21. Rad1 {[%clk 0:02:51.7]} 21... Qa5 {[%clk 0:01:03.1]} 22. a3
{[%clk 0:02:49.7]} 22... Nd5 {[%clk 0:00:59.6]} 23. Bd2 {[%clk 0:02:47.7]} 23...
Nxc3 {[%clk 0:00:59]} 24. Bxc3 {[%clk 0:02:48.8]} 24... Qc7 {[%clk 0:00:51.9]}
25. Qe3 {[%clk 0:02:43.9]} 25... Bd5 {[%clk 0:00:34.2]} 26. Qg5 {[%clk
0:02:31.2]} 26... f6 {[%clk 0:00:31.6]} 27. Bxf6 {[%clk 0:02:28.2]} 27... Qb6+
{[%clk 0:00:30.3]} 28. Bd4 {[%clk 0:02:28.7]} 28... Qg6 {[%clk 0:00:31.9]} 29.
Qxg6 {[%clk 0:02:29.8]} 29... hxg6 {[%clk 0:00:33.8]} 30. Bxa7 {[%clk
0:02:29.4]} 30... Be6 {[%clk 0:00:33.3]} 31. Bd4 {[%clk 0:02:28.8]} 31... g5
{[%clk 0:00:31.3]} 32. Bc3 {[%clk 0:02:29.5]} 32... g4 {[%clk 0:00:32]} 33. Kf2
{[%clk 0:02:30.1]} 33... Kf7 {[%clk 0:00:31.7]} 34. f4 {[%clk 0:02:21.2]} 34...
Rxd1 {[%clk 0:00:30.8]} 35. Rxd1 {[%clk 0:02:22.4]} 35... Rh8 {[%clk 0:00:32.7]}
36. Kg1 {[%clk 0:02:23.3]} 36... Bf5 {[%clk 0:00:31.8]} 37. Rd5 {[%clk
0:02:24.3]} 37... Kg6 {[%clk 0:00:30.4]} 38. Bxg7 {[%clk 0:02:21.8]} 38... Re8
{[%clk 0:00:24.2]} 39. Be5 {[%clk 0:02:20.9]} 39... c3 {[%clk 0:00:18.4]} 40.
bxc3 {[%clk 0:02:14.9]} 40... Ra8 {[%clk 0:00:19.2]} 41. Rd6+ {[%clk 0:02:14.2]}
41... Kh7 {[%clk 0:00:18.5]} 42. Rf6 {[%clk 0:02:12]} 42... Be4 {[%clk
0:00:18.7]} 43. Bd6 {[%clk 0:02:10.5]} 43... Rc8 {[%clk 0:00:14.6]} 44. Bb4
{[%clk 0:02:10.5]} 44... Rd8 {[%clk 0:00:15.5]} 45. Rd6 {[%clk 0:02:11.7]} 45...
Re8 {[%clk 0:00:09.4]} 46. Kf2 {[%clk 0:02:12.5]} 46... Bf5 {[%clk 0:00:03.9]}
47. Rd5 {[%clk 0:02:10.3]} 47... Kg6 {[%clk 0:00:04.7]} 48. a4 {[%clk
0:02:11.5]} 48... Rh8 {[%clk 0:00:05.8]} 49. Kg1 {[%clk 0:02:09.9]} 49... Re8
{[%clk 0:00:05.1]} 50. Re5 {[%clk 0:02:06.1]} 50... Rd8 {[%clk 0:00:06.5]} 51.
e4 {[%clk 0:01:59.2]} 51... Rd1+ {[%clk 0:00:02.7]} 52. Kf2 {[%clk 0:02:00.5]}
52... Bc8 {[%clk 0:00:04.6]} 53. Rg5+ {[%clk 0:01:58.7]} 53... Kf7 {[%clk
0:00:06]} 54. f5 {[%clk 0:01:59.6]} 54... Ba6 {[%clk 0:00:02.4]} 55. Rxg4 {[%clk
0:02:00.2]} 55... Rd2+ {[%clk 0:00:04.3]} 56. Ke3 {[%clk 0:02:01.2]} 56... Rxh2
{[%clk 0:00:06.2]} 57. Rg6 {[%clk 0:02:01.5]} 57... Bb7 {[%clk 0:00:04.6]} 58.
Rb6 {[%clk 0:02:00.3]} 58... Bc8 {[%clk 0:00:02.8]} 59. Rc6 {[%clk 0:02:00.7]}
59... Rh8 {[%clk 0:00:03.5]} 60. Rc7+ {[%clk 0:02:01.3]} 60... Kf6 {[%clk
0:00:04]} 61. Bc5 {[%clk 0:02:01.6]} 1-0

[Event "*** Titled Tuesday 3|2 Blitz"]
[Site "Chess.com"]
[Date "2016.01.05"]
[Round "2"]
[White "PowerThinking2650"]
[Black "the_drake"]
[Result "0-1"]
[WhiteElo "2069"]
[BlackElo "2005"]
[TimeControl "180+2"]
[EndTime "11:21:44 PST"]
[Termination "the_drake won on time"]

1. e4 {[%clk 0:03:00]} 1... e5 {[%clk 0:03:00.6]} 2. Nf3 {[%clk 0:03:00.1]} 2...
Nc6 {[%clk 0:03:00.6]} 3. d4 {[%clk 0:02:59.9]} 3... exd4 {[%clk 0:03:01.4]} 4.
Nxd4 {[%clk 0:03:00.4]} 4... Nf6 {[%clk 0:03:02.4]} 5. Nxc6 {[%clk 0:03:00.7]}
5... bxc6 {[%clk 0:03:03.9]} 6. e5 {[%clk 0:03:01.8]} 6... Qe7 {[%clk
0:03:05.5]} 7. Qe2 {[%clk 0:03:02.3]} 7... Nd5 {[%clk 0:03:06.7]} 8. c4 {[%clk
0:03:03.1]} 8... Ba6 {[%clk 0:03:08.3]} 9. b3 {[%clk 0:03:01.9]} 9... g6 {[%clk
0:03:08.8]} 10. Bb2 {[%clk 0:02:52.9]} 10... Bg7 {[%clk 0:03:09.1]} 11. Nd2
{[%clk 0:02:53.4]} 11... O-O {[%clk 0:03:09.8]} 12. O-O-O {[%clk 0:02:52.3]}
12... Rfe8 {[%clk 0:02:53]} 13. Nf3 {[%clk 0:02:48.1]} 13... Nb4 {[%clk
0:02:06.2]} 14. a3 {[%clk 0:02:42.2]} 14... Nd5 {[%clk 0:02:01.8]} 15. Qd2
{[%clk 0:02:39.1]} 15... Nb6 {[%clk 0:01:58.3]} 16. a4 {[%clk 0:02:39.3]} 16...
Rad8 {[%clk 0:01:48.1]} 17. a5 {[%clk 0:02:09.8]} 17... Nc8 {[%clk 0:01:48.1]}
18. h4 {[%clk 0:01:31.8]} 18... d6 {[%clk 0:01:36.9]} 19. exd6 {[%clk
0:01:30.2]} 19... cxd6 {[%clk 0:01:30.7]} 20. Bxg7 {[%clk 0:01:27.7]} 20... Kxg7
{[%clk 0:01:32.6]} 21. h5 {[%clk 0:01:25.6]} 21... Kg8 {[%clk 0:01:04.6]} 22.
hxg6 {[%clk 0:01:23.4]} 22... fxg6 {[%clk 0:01:06]} 23. Bd3 {[%clk 0:01:23.5]}
23... Qg7 {[%clk 0:01:02.7]} 24. Kb1 {[%clk 0:01:21.6]} 24... Ne7 {[%clk
0:01:01]} 25. Ng5 {[%clk 0:01:19]} 25... Rb8 {[%clk 0:00:50.2]} 26. Ka2 {[%clk
0:01:16.8]} 26... h5 {[%clk 0:00:42.5]} 27. g4 {[%clk 0:01:08.2]} 27... d5
{[%clk 0:00:41.3]} 28. gxh5 {[%clk 0:01:04.2]} 28... dxc4 {[%clk 0:00:42.5]} 29.
Bxc4+ {[%clk 0:00:31.6]} 29... Bxc4 {[%clk 0:00:42.6]} 30. bxc4 {[%clk
0:00:32.2]} 30... Qe5 {[%clk 0:00:17.2]} 31. hxg6 {[%clk 0:00:29.9]} 31... Qc5
{[%clk 0:00:17.8]} 32. Qc3 {[%clk 0:00:16.1]} 32... Nxg6 {[%clk 0:00:16.2]} 33.
Rh8+ {[%clk 0:00:14.6]} 33... Nxh8 {[%clk 0:00:16.4]} 34. Rd7 {[%clk 0:00:11.6]}
34... Qxg5 {[%clk 0:00:15.4]} 0-1